[Event "26th Zadar Open 2019"]
[Site "Zadar"]
[Date "2019.12.21"]
[Round "8.8"]
[White "Chan, Kim Yew"]
[Black "Livaic, Leon"]
[Result "0-1"]
[ECO "E08"]
[WhiteElo "2245"]
[BlackElo "2505"]
[Annotator "ChessBase"]
[PlyCount "54"]
[EventDate "2019.12.15"]
[EventType "swiss"]
[EventCountry "CRO"]
[SourceTitle "playchess.com"]
[Source "ChessBase"]
[SourceQuality "1"]
[TimeControl "40/5400+30:1800+30"]

1. Nf3 {[%emt 0:00:30]} d5 {[%emt 0:00:30]} 2. g3 {[%emt 0:00:00]} Nf6 {[%emt 0:00:30]} 3. Bg2 {[%emt 0:00:00]} e6 {[%emt 0:01:30]} 4. O-O {[%emt 0:00:00]} Be7 {[%emt 0:00:30]} 5. c4 {[%emt 0:00:00]} O-O {[%emt 0:00:30]} 6. d4 {[%emt 0:00:30]} c6 {[%emt 0:00:30]} 7. Qc2 {[%emt 0:00:00]} Nbd7 {[%emt 0:00:30]} 8. Bf4 {[%emt 0:02:00]} b6 {[%emt 0:05:30]} 9. Ne5 {[%emt 0:02:30]} Bb7 {[%emt 0:02:30]} 10. Rd1 {[%emt 0:00:30]} Rc8 {[%emt 0:01:30]} 11. Nc3 {[%emt 0:02:30]} Nh5 {[%emt 0:06:30]} 12. Bd2 {[%emt 0:00:30]} Qc7 {[%emt 0:04:30]} 13. Nxd7 {[%emt 0:05:30]} Qxd7 {[%emt 0:00:30]} 14. b3 {[%emt 0:18:30]} f5 {[%emt 0:01:30]} 15. a4 {[%emt 0:09:30]} a5 {[%emt 0:02:30]} 16. Bc1 {[%emt 0:00:30]} Nf6 {[%emt 0:02:30]} 17. Ba3 {[%emt 0:00:30]} Bxa3 {[%emt 0:00:30]} 18. Rxa3 {[%emt 0:00:30]} Ba6 {[%emt 0:06:30]} 19. Qb2 {[%emt 0:03:30]} Qd6 {[%emt 0:04:30]} 20. cxd5 {[%emt 0:06:30]} exd5 {[%emt 0:03:30]} 21. Raa1 {[%emt 0:05:30]} f4 {[%emt 0:05:30]} 22. Rab1 {[%emt 0:02:30]} h5 {[%emt 0:03:30]} 23. Bf3 {[%emt 0:07:30]} fxg3 {[%emt 0:02:30]} 24. hxg3 {[%emt 0:03:30]} h4 {[%emt 0:00:30]} 25. Kg2 {[%emt 0:08:30]} Ne4 {[%emt 0:06:30]} 26. gxh4 {[%emt 0:05:46]} Qg6+ {[%emt 0:00:30]} 27. Kh2 {[%emt 0:00:30]} Rf4 {[%emt 0:00:30]} 0-1

[Event "26th Zadar Open 2019"]
[Site "Zadar"]
[Date "2019.12.21"]
[Round "8.9"]
[White "Bukal, Vladimir Jr."]
[Black "Nguyen, Piotr"]
[Result "0-1"]
[ECO "D03"]
[WhiteElo "2393"]
[BlackElo "2413"]
[Annotator "NA"]
[PlyCount "68"]
[EventDate "2019.12.15"]
[EventType "swiss"]
[EventCountry "CRO"]
[SourceTitle "playchess.com"]
[Source "ChessBase"]
[SourceQuality "1"]
[TimeControl "40/5400+30:1800+30"]

1. d4 {[%emt 0:00:30]} Nf6 {[%emt 0:00:30]} 2. Nf3 {[%emt 0:01:30]} g6 {[%emt 0:00:30]} 3. Bg5 {[%emt 0:01:30]} Bg7 {[%emt 0:00:30]} 4. Nbd2 {[%emt 0:00:30]} O-O {[%emt 0:00:30]} 5. c3 {[%emt 0:02:30]} d5 {[%emt 0:04:30]} 6. e3 {[%emt 0:00:30]} Nbd7 {[%emt 0:02:30]} 7. a4 {[%emt 0:03:30]} Re8 {[%emt 0:04:30]} 8. Be2 {[%emt 0:02:30]} e5 $11 {[%emt 0:00:30]} 9. O-O {[%emt 0:02:30]} exd4 {[%emt 0:10:30]} 10. exd4 {[%emt 0:04:30]} Nf8 {[%emt 0:05:30]} 11. Ne5 {[%emt 0:05:30]} c5 {[%emt 0:01:30]} 12. Bb5 {[%emt 0:05:30]} Re6 {[%emt 0:03:30]} 13. a5 {[%emt 0:02:30]} a6 {[%emt 0:04:30]} 14. Bd3 {[%emt 0:01:30]} Qe8 {[%emt 0:07:30]} 15. Bc2 {[%emt 0:20:30]} Qb5 {[%emt 0:11:30]} 16. Nd3 {[%emt 0:20:30]} cxd4 {[%emt 0:01:30]} 17. cxd4 {[%emt 0:01:30]} Ne4 {[%emt 0:05:30]} 18. Be3 {[%emt 0:00:30]} Re7 {[%emt 0:04:30]} 19. Re1 {[%emt 0:09:50]} Bf5 {[%emt 0:02:30]} 20. Ra3 {[%emt 0:01:33]} Nd6 {[%emt 0:06:30]} 21. Nb1 {[%emt 0:04:45]} Nc4 {[%emt 0:05:22]} 22. Nc3 {[%emt 0:00:06]} Qd7 {[%emt 0:00:05]} 23. Ra2 {[%emt 0:02:12]} Ne6 {[%emt 0:01:40]} 24. Ba4 {[%emt 0:02:02]} Qd6 {[%emt 0:02:26]} 25. Ne2 {[%emt 0:02:54]} Nxa5 {[%emt 0:04:08]} 26. Bd2 {[%emt 0:00:55]} Bxd3 {[%emt 0:04:02]} 27. Bxa5 {[%emt 0:00:03]} Bc4 {[%emt 0:01:51]} 28. Ra1 {[%emt 0:00:22]} b5 {[%emt 0:00:52]} 29. Bc2 {[%emt 0:00:48]} Rae8 {[%emt 0:01:56]} 30. Qd2 {[%emt 0:00:25]} Nc7 {[%emt 0:02:56]} 31. Bb4 {[%emt 0:00:38]} Rxe2 {[%emt 0:00:20]} 32. Bxd6 {[%emt 0:00:48]} Rxd2 {[%emt 0:00:11]} 33. Bxc7 {[%emt 0:00:18]} Rxe1+ {[%emt 0:00:45]} 34. Rxe1 {[%emt 0:00:05]} Bxd4 {[%emt 0:00:34]} 0-1

[Event "26th Zadar Open 2019"]
[Site "Zadar"]
[Date "2019.12.21"]
[Round "8.10"]
[White "Dixit, Nikhil"]
[Black "Pecnik, Leo"]
[Result "1-0"]
[ECO "B30"]
[WhiteElo "2318"]
[BlackElo "2326"]
[Annotator "NA"]
[PlyCount "95"]
[EventDate "2019.12.15"]
[EventType "swiss"]
[EventCountry "CRO"]
[SourceTitle "playchess.com"]
[Source "ChessBase"]
[SourceQuality "1"]
[TimeControl "40/5400+30:1800+30"]

1. e4 {[%emt 0:06:30]} c5 {[%emt 0:00:30]} 2. Nf3 {[%emt 0:01:30]} Nc6 {[%emt 0:00:00]} 3. Bb5 {[%emt 0:00:30]} e5 {[%emt 0:00:00]} 4. O-O {[%emt 0:02:30]} Bd6 {[%emt 0:00:30]} 5. c3 {[%emt 0:02:30]} Nge7 {[%emt 0:00:30]} 6. d4 {[%emt 0:06:30]} cxd4 {[%emt 0:01:30]} 7. cxd4 {[%emt 0:00:30]} exd4 {[%emt 0:00:00]} 8. Nxd4 {[%emt 0:02:30]} a6 {[%emt 0:01:00]} 9. Be2 {[%emt 0:03:30]} O-O {[%emt 0:02:30]} 10. Nf3 {[%emt 0:04:30]} Qc7 {[%emt 0:05:30]} 11. Nc3 {[%emt 0:02:30]} Ne5 {[%emt 0:11:30]} 12. h3 {[%emt 0:01:30]} Nxf3+ {[%emt 0:10:30]} 13. Bxf3 {[%emt 0:00:30]} Bh2+ {[%emt 0:00:00]} 14. Kh1 {[%emt 0:00:30]} Be5 {[%emt 0:00:00]} 15. Be3 {[%emt 0:02:30]} d6 {[%emt 0:11:30]} 16. Rc1 {[%emt 0:02:30]} Qd8 {[%emt 0:01:30]} 17. Na4 {[%emt 0:07:30]} Be6 {[%emt 0:08:30]} 18. Nb6 {[%emt 0:04:30]} Rb8 {[%emt 0:00:30]} 19. Nc4 {[%emt 0:05:30]} Bxc4 {[%emt 0:07:30]} 20. Rxc4 {[%emt 0:00:30]} Bxb2 {[%emt 0:00:00]} 21. Rc2 {[%emt 0:09:30]} Ba3 {[%emt 0:08:00]} 22. Bg5 {[%emt 0:09:30]} f6 {[%emt 0:05:30]} 23. Bf4 {[%emt 0:04:54]} Qb6 {[%emt 0:03:30]} 24. Bg4 {[%emt 0:01:34]} Rbd8 {[%emt 0:02:35]} 25. Be6+ {[%emt 0:03:06]} Kh8 {[%emt 0:00:03]} 26. Qh5 {[%emt 0:05:13]} Bc5 {[%emt 0:10:58]} 27. Bc1 {[%emt 0:01:00]} Qb5 {[%emt 0:01:06]} 28. Rd1 {[%emt 0:01:38]} Qe8 {[%emt 0:00:57]} 29. Qxe8 {[%emt 0:02:52]} Rfxe8 {[%emt 0:00:10]} 30. Bf7 {[%emt 0:03:04]} Rf8 {[%emt 0:00:14]} 31. Bb3 {[%emt 0:00:06]} Nc6 {[%emt 0:00:16]} 32. Rcd2 {[%emt 0:00:53]} g5 {[%emt 0:02:36]} 33. Bb2 {[%emt 0:00:33]} Ne5 {[%emt 0:01:20]} 34. g3 {[%emt 0:01:03]} Ng6 {[%emt 0:02:31]} 35. Kg2 {[%emt 0:01:03]} h6 {[%emt 0:01:17]} 36. Rd5 {[%emt 0:00:48]} Ne7 {[%emt 0:01:23]} 37. Rxc5 {[%emt 0:00:34]} dxc5 {[%emt 0:00:14]} 38. Rxd8 {[%emt 0:00:12]} Rxd8 {[%emt 0:00:06]} 39. Bxf6+ {[%emt 0:00:09]} Kh7 {[%emt 0:00:05]} 40. Bxe7 {[%emt 0:00:02]} Rc8 {[%emt 0:00:42]} 41. Be6 {[%emt 0:31:55]} Rc6 {[%emt 0:01:27]} 42. Bd7 {[%emt 0:00:00]} Rc7 {[%emt 0:00:30]} 43. Bf5+ {[%emt 0:00:00]} Kg8 {[%emt 0:00:30]} 44. Bd8 {[%emt 0:00:00]} Rc6 {[%emt 0:00:30]} 45. e5 {[%emt 0:00:00]} c4 {[%emt 0:01:30]} 46. e6 {[%emt 0:00:00]} Kf8 {[%emt 0:00:30]} 47. e7+ {[%emt 0:00:00]} Ke8 {[%emt 0:00:00]} 48. Bg4 {[%emt 0:00:00]} 1-0

[Event "26th Zadar Open 2019"]
[Site "Zadar"]
[Date "2019.12.21"]
[Round "8.11"]
[White "Martinovic, Sasa"]
[Black "Vidic, Teja"]
[Result "1-0"]
[ECO "A11"]
[WhiteElo "2544"]
[BlackElo "2221"]
[Annotator "ChessBase"]
[PlyCount "49"]
[EventDate "2019.12.15"]
[EventType "swiss"]
[EventCountry "CRO"]
[SourceTitle "playchess.com"]
[Source "ChessBase"]
[SourceQuality "1"]
[TimeControl "40/5400+30:1800+30"]

1. Nf3 {[%emt 0:00:30]} d5 {[%emt 0:00:30]} 2. e3 {[%emt 0:00:00]} Nf6 {[%emt 0:00:30]} 3. c4 {[%emt 0:00:00]} e6 {[%emt 0:00:30]} 4. b3 {[%emt 0:00:30]} c6 {[%emt 0:06:30]} 5. Bb2 {[%emt 0:00:30]} Nbd7 {[%emt 0:00:30]} 6. Qc2 {[%emt 0:07:30]} Bd6 {[%emt 0:01:30]} 7. Nc3 {[%emt 0:00:30]} O-O {[%emt 0:01:30]} 8. Be2 {[%emt 0:01:30]} b6 {[%emt 0:07:30]} 9. Rg1 {[%emt 0:02:30]} Re8 {[%emt 0:13:30]} 10. g4 {[%emt 0:00:30]} Nf8 {[%emt 0:01:30]} 11. g5 {[%emt 0:07:30]} N6d7 {[%emt 0:00:30]} 12. cxd5 {[%emt 0:14:30]} cxd5 {[%emt 0:09:30]} 13. Nb5 {[%emt 0:09:30]} Bb8 {[%emt 0:00:30]} 14. Rc1 {[%emt 0:14:30]} e5 {[%emt 0:05:30]} 15. Qc6 {[%emt 0:05:30]} Nc5 {[%emt 0:09:30]} 16. Rxc5 {[%emt 0:00:30]} bxc5 {[%emt 0:00:00]} 17. Qxa8 {[%emt 0:00:30]} Qb6 {[%emt 0:22:36]} 18. Qxd5 {[%emt 0:00:30]} Bb7 {[%emt 0:05:59]} 19. Qc4 {[%emt 0:00:30]} e4 {[%emt 0:01:30]} 20. Qc3 {[%emt 0:01:30]} Ne6 {[%emt 0:00:53]} 21. Bc4 {[%emt 0:00:30]} Nd4 {[%emt 0:03:50]} 22. Nfxd4 {[%emt 0:00:30]} cxd4 {[%emt 0:00:11]} 23. Qxd4 {[%emt 0:00:30]} Qg6 {[%emt 0:00:05]} 24. h4 {[%emt 0:04:30]} Be5 {[%emt 0:00:39]} 25. Qxa7 {[%emt 0:01:30]} 1-0

[Event "26th Zadar Open 2019"]
[Site "Zadar"]
[Date "2019.12.21"]
[Round "8.12"]
[White "Peng, Hongchi"]
[Black "Moksh Amit Doshi"]
[Result "0-1"]
[ECO "C54"]
[WhiteElo "2271"]
[BlackElo "2399"]
[Annotator "NA"]
[PlyCount "38"]
[EventDate "2019.12.15"]
[EventType "swiss"]
[EventCountry "CRO"]
[SourceTitle "playchess.com"]
[Source "ChessBase"]
[SourceQuality "1"]
[TimeControl "40/5400+30:1800+30"]

1. e4 {[%emt 0:00:30]} e5 {[%emt 0:07:30]} 2. Nf3 {[%emt 0:00:00]} Nc6 {[%emt 0:00:30]} 3. Bc4 {[%emt 0:01:00]} Bc5 {[%emt 0:01:30]} 4. c3 {[%emt 0:00:30]} Nf6 {[%emt 0:00:30]} 5. d4 {[%emt 0:00:00]} exd4 {[%emt 0:00:30]} 6. e5 {[%emt 0:00:00]} d5 {[%emt 0:00:00]} 7. Bb5 {[%emt 0:00:30]} Ne4 {[%emt 0:00:00]} 8. cxd4 {[%emt 0:00:00]} Bb6 {[%emt 0:00:00]} 9. O-O {[%emt 0:00:00]} O-O {[%emt 0:01:00]} 10. h3 {[%emt 0:00:30]} f6 {[%emt 0:00:30]} 11. Nc3 {[%emt 0:00:30]} fxe5 {[%emt 0:02:30]} 12. dxe5 {[%emt 0:00:30]} Be6 {[%emt 0:08:30]} 13. Bd3 {[%emt 0:00:30]} Nxf2 {[%emt 0:03:30]} 14. Rxf2 {[%emt 0:01:30]} Bxf2+ {[%emt 0:01:30]} 15. Kxf2 {[%emt 0:00:00]} Nxe5 {[%emt 0:00:30]} 16. Kg1 {[%emt 0:20:00]} Nxf3+ {[%emt 0:04:30]} 17. gxf3 {[%emt 0:00:30]} Qh4 {[%emt 0:00:30]} 18. Qf1 {[%emt 0:03:30]} Qg3+ {[%emt 0:02:30]} 19. Qg2 {[%emt 0:00:30]} Rxf3 {[%emt 0:00:00]} 0-1

[Event "26th Zadar Open 2019"]
[Site "Zadar"]
[Date "2019.12.21"]
[Round "8.13"]
[White "Lye, Lik Zang"]
[Black "Antova, Gabriela"]
[Result "1-0"]
[ECO "B23"]
[WhiteElo "2379"]
[BlackElo "2314"]
[Annotator "NA"]
[PlyCount "85"]
[EventDate "2019.12.15"]
[EventType "swiss"]
[EventCountry "CRO"]
[SourceTitle "playchess.com"]
[Source "ChessBase"]
[SourceQuality "1"]
[TimeControl "40/5400+30:1800+30"]

1. e4 {[%emt 0:00:30]} c5 {[%emt 0:02:30]} 2. Nc3 {[%emt 0:00:00]} d6 {[%emt 0:00:00]} 3. d4 {[%emt 0:00:00]} cxd4 {[%emt 0:00:00]} 4. Qxd4 {[%emt 0:00:00]} Nc6 {[%emt 0:00:30]} 5. Qd2 {[%emt 0:00:00]} g6 {[%emt 0:01:30]} 6. b3 {[%emt 0:00:00]} Bh6 {[%emt 0:00:00]} 7. f4 {[%emt 0:00:00]} Nf6 {[%emt 0:00:00]} 8. Bb2 {[%emt 0:00:30]} O-O {[%emt 0:01:30]} 9. O-O-O {[%emt 0:00:30]} a5 {[%emt 0:03:30]} 10. a4 {[%emt 0:00:30]} Be6 $14 {[%emt 0:07:30]} 11. Nf3 {[%emt 0:04:30]} Rc8 {[%emt 0:03:30]} 12. Kb1 {[%emt 0:05:30]} Nb4 {[%emt 0:02:30]} 13. Ng5 {[%emt 0:08:30]} Bg4 {[%emt 0:07:30]} 14. Rc1 {[%emt 0:23:30]} d5 {[%emt 0:19:30]} 15. e5 {[%emt 0:05:30]} Ne4 {[%emt 0:01:30]} 16. Ngxe4 {[%emt 0:05:30]} dxe4 {[%emt 0:00:30]} 17. Qe3 {[%emt 0:00:30]} Rxc3 {[%emt 0:16:30]} 18. Qxc3 {[%emt 0:04:30]} Bxf4 {[%emt 0:00:00]} 19. Bc4 {[%emt 0:02:30]} Bd2 {[%emt 0:00:00]} 20. Qg3 {[%emt 0:01:30]} Bxc1 {[%emt 0:11:49]} 21. Bxc1 {[%emt 0:02:30]} Bf5 {[%emt 0:04:01]} 22. Be3 {[%emt 0:15:52]} Qc8 {[%emt 0:00:16]} 23. Qh4 {[%emt 0:06:21]} Qd7 {[%emt 0:06:51]} 24. Rf1 {[%emt 0:02:48]} Rc8 {[%emt 0:00:36]} 25. Bxf7+ {[%emt 0:04:20]} Kxf7 {[%emt 0:02:53]} 26. Qxh7+ {[%emt 0:00:16]} Ke6 {[%emt 0:00:05]} 27. g4 {[%emt 0:00:18]} Bxg4 {[%emt 0:00:27]} 28. Qxg6+ {[%emt 0:05:24]} Kd5 {[%emt 0:01:00]} 29. c4+ {[%emt 0:01:18]} Rxc4 {[%emt 0:01:19]} 30. bxc4+ {[%emt 0:01:08]} Kxc4 {[%emt 0:00:02]} 31. Qxe4+ {[%emt 0:00:21]} Kb3 {[%emt 0:00:05]} 32. Bd4 {[%emt 0:00:37]} Kxa4 {[%emt 0:02:55]} 33. Kb2 {[%emt 0:00:39]} Kb5 {[%emt 0:01:53]} 34. Bc3 {[%emt 0:00:26]} Nd3+ {[%emt 0:00:29]} 35. Kc2 {[%emt 0:00:21]} Nc5 {[%emt 0:01:16]} 36. Rb1+ {[%emt 0:00:28]} Ka6 {[%emt 0:00:00]} 37. Qc4+ {[%emt 0:00:10]} b5 {[%emt 0:00:01]} 38. Qxc5 {[%emt 0:00:10]} Bf5+ {[%emt 0:00:05]} 39. Kb2 {[%emt 0:00:17]} Bxb1 {[%emt 0:00:10]} 40. Bd4 {[%emt 0:00:24]} Qb7 {[%emt 0:00:18]} 41. Kxb1 {[%emt 0:31:09]} Qh1+ {[%emt 0:33:48]} 42. Kb2 {[%emt 0:00:44]} Qxh2+ {[%emt 0:00:00]} 43. Bf2 {[%emt 0:00:00]} 1-0

[Event "26th Zadar Open 2019"]
[Site "Zadar"]
[Date "2019.12.21"]
[Round "8.14"]
[White "Bratovic, Blaz"]
[Black "Sinanovic, Muhamed"]
[Result "1-0"]
[ECO "B41"]
[WhiteElo "2359"]
[BlackElo "2309"]
[Annotator "NA"]
[PlyCount "59"]
[EventDate "2019.12.15"]
[EventType "swiss"]
[EventCountry "CRO"]
[SourceTitle "playchess.com"]
[Source "ChessBase"]
[SourceQuality "1"]
[TimeControl "40/5400+30:1800+30"]

1. e4 {[%emt 0:00:30]} c5 {[%emt 0:00:30]} 2. Nf3 {[%emt 0:00:00]} e6 {[%emt 0:01:30]} 3. d4 {[%emt 0:02:00]} cxd4 {[%emt 0:00:00]} 4. Nxd4 {[%emt 0:00:30]} a6 {[%emt 0:00:00]} 5. c4 {[%emt 0:00:00]} Nf6 {[%emt 0:03:30]} 6. Nc3 {[%emt 0:00:00]} Qc7 {[%emt 0:00:30]} 7. Be2 {[%emt 0:00:30]} b6 {[%emt 0:01:30]} 8. O-O {[%emt 0:01:30]} Bb7 {[%emt 0:00:00]} 9. Qd3 {[%emt 0:00:30]} d6 {[%emt 0:01:00]} 10. f4 {[%emt 0:00:30]} Nbd7 {[%emt 0:00:30]} 11. b4 {[%emt 0:01:30]} Be7 {[%emt 0:09:30]} 12. Bb2 {[%emt 0:00:30]} O-O {[%emt 0:09:30]} 13. Rac1 {[%emt 0:03:30]} Rfd8 {[%emt 0:06:30]} 14. Nd5 {[%emt 0:03:30]} exd5 {[%emt 0:00:30]} 15. cxd5 {[%emt 0:00:00]} Qb8 {[%emt 0:05:30]} 16. Nc6 {[%emt 0:09:00]} Bxc6 {[%emt 0:00:00]} 17. dxc6 {[%emt 0:00:30]} Nc5 {[%emt 0:06:00]} 18. bxc5 {[%emt 0:00:00]} bxc5 {[%emt 0:04:30]} 19. Rb1 {[%emt 0:09:00]} Qc7 {[%emt 0:00:30]} 20. Bxf6 {[%emt 0:00:30]} Bxf6 {[%emt 0:01:30]} 21. Qd5 {[%emt 0:00:00]} Ra7 {[%emt 0:11:30]} 22. Rb3 {[%emt 0:20:00]} Bd4+ {[%emt 0:08:30]} 23. Kh1 {[%emt 0:00:00]} Qa5 {[%emt 0:01:30]} 24. Bc4 {[%emt 0:01:00]} Kh8 {[%emt 0:05:30]} 25. Rfb1 {[%emt 0:02:30]} h6 {[%emt 0:06:00]} 26. e5 {[%emt 0:10:30]} Qd2 {[%emt 0:05:27]} 27. exd6 {[%emt 0:01:30]} Re8 {[%emt 0:02:21]} 28. Qf3 {[%emt 0:07:30]} Bf2 {[%emt 0:04:37]} 29. Rb8 {[%emt 0:01:30]} Ra8 {[%emt 0:01:59]} 30. c7 {[%emt 0:00:30]} 1-0

[Event "26th Zadar Open 2019"]
[Site "Zadar"]
[Date "2019.12.21"]
[Round "8.15"]
[White "Ghersinich, Enrico"]
[Black "Plenkovic, Zdenko"]
[Result "1-0"]
[ECO "B07"]
[WhiteElo "2157"]
[BlackElo "2355"]
[Annotator "NA"]
[PlyCount "69"]
[EventDate "2019.12.15"]
[EventType "swiss"]
[EventCountry "CRO"]
[SourceTitle "playchess.com"]
[Source "ChessBase"]
[SourceQuality "1"]
[TimeControl "40/5400+30:1800+30"]

1. d4 {[%emt 0:00:30]} d6 {[%emt 0:03:30]} 2. e4 {[%emt 0:00:00]} Nd7 {[%emt 0:00:30]} 3. f4 {[%emt 0:01:00]} e5 {[%emt 0:03:30]} 4. Nc3 {[%emt 0:00:30]} c6 {[%emt 0:01:30]} 5. Nf3 {[%emt 0:00:30]} Be7 {[%emt 0:00:30]} 6. Be3 {[%emt 0:25:30]} Ngf6 {[%emt 0:02:30]} 7. h3 {[%emt 0:01:30]} exf4 {[%emt 0:02:30]} 8. Bxf4 {[%emt 0:00:30]} Nh5 {[%emt 0:00:00]} 9. Qd2 {[%emt 0:09:30]} Nxf4 {[%emt 0:03:00]} 10. Qxf4 {[%emt 0:00:30]} O-O {[%emt 0:01:30]} 11. Bd3 {[%emt 0:03:30]} b5 {[%emt 0:14:30]} 12. O-O {[%emt 0:04:30]} b4 {[%emt 0:02:30]} 13. Ne2 {[%emt 0:00:00]} c5 {[%emt 0:03:30]} 14. c3 {[%emt 0:07:00]} bxc3 {[%emt 0:00:00]} 15. bxc3 {[%emt 0:00:00]} cxd4 {[%emt 0:00:00]} 16. cxd4 {[%emt 0:00:00]} d5 {[%emt 0:01:30]} 17. Ng3 {[%emt 0:06:30]} g6 {[%emt 0:02:30]} 18. e5 {[%emt 0:00:30]} Nb6 {[%emt 0:03:30]} 19. Nh5 {[%emt 0:05:30]} f5 {[%emt 0:07:30]} 20. exf6 {[%emt 0:01:30]} Bxf6 {[%emt 0:03:30]} 21. Qh6 {[%emt 0:00:30]} Bf5 {[%emt 0:06:30]} 22. Bxf5 {[%emt 0:06:30]} gxf5 {[%emt 0:00:30]} 23. Ne5 {[%emt 0:01:30]} Qd6 {[%emt 0:05:30]} 24. Rxf5 {[%emt 0:08:59]} Bxe5 {[%emt 0:02:30]} 25. Qg5+ {[%emt 0:00:06]} Qg6 {[%emt 0:01:30]} 26. Rxe5 {[%emt 0:00:06]} Kh8 {[%emt 0:01:30]} 27. Qh4 {[%emt 0:03:07]} Rf7 {[%emt 0:04:30]} 28. Nf4 {[%emt 0:01:40]} Qd6 {[%emt 0:04:29]} 29. Rae1 {[%emt 0:00:50]} Raf8 {[%emt 0:01:08]} 30. g3 {[%emt 0:00:06]} Nc4 {[%emt 0:06:07]} 31. Re6 {[%emt 0:01:52]} Rxf4 {[%emt 0:00:14]} 32. gxf4 {[%emt 0:00:05]} Qxf4 {[%emt 0:02:10]} 33. Qxf4 {[%emt 0:00:37]} Rxf4 {[%emt 0:00:05]} 34. Rf1 {[%emt 0:00:44]} Rxd4 {[%emt 0:01:19]} 35. Rf7 {[%emt 0:00:27]} 1-0

[Event "26th Zadar Open 2019"]
[Site "Zadar"]
[Date "2019.12.21"]
[Round "8.16"]
[White "Guttenthaler, Franz"]
[Black "Spalir, Jernej"]
[Result "0-1"]
[ECO "D41"]
[WhiteElo "2304"]
[BlackElo "2429"]
[Annotator "NA"]
[PlyCount "78"]
[EventDate "2019.12.15"]
[EventType "swiss"]
[EventCountry "CRO"]
[SourceTitle "playchess.com"]
[Source "ChessBase"]
[SourceQuality "1"]
[TimeControl "40/5400+30:1800+30"]

1. d4 {[%emt 0:00:30]} d5 {[%emt 0:00:30]} 2. c4 {[%emt 0:00:00]} e6 {[%emt 0:00:30]} 3. Nc3 {[%emt 0:00:00]} Nf6 {[%emt 0:00:00]} 4. cxd5 {[%emt 0:00:30]} Nxd5 {[%emt 0:00:00]} 5. e4 {[%emt 0:00:30]} Nxc3 {[%emt 0:00:30]} 6. bxc3 {[%emt 0:00:30]} c5 {[%emt 0:00:30]} 7. Nf3 {[%emt 0:00:30]} cxd4 {[%emt 0:00:30]} 8. cxd4 {[%emt 0:00:30]} Bb4+ {[%emt 0:00:00]} 9. Bd2 {[%emt 0:00:00]} Bxd2+ {[%emt 0:00:00]} 10. Qxd2 {[%emt 0:00:00]} O-O {[%emt 0:00:00]} 11. Bc4 {[%emt 0:01:30]} b6 {[%emt 0:00:00]} 12. O-O {[%emt 0:01:30]} Bb7 {[%emt 0:00:30]} 13. Rfe1 {[%emt 0:00:30]} Nd7 {[%emt 0:04:30]} 14. d5 {[%emt 0:06:30]} exd5 $11 {[%emt 0:08:30]} 15. Bxd5 {[%emt 0:00:30]} Nc5 {[%emt 0:00:30]} 16. Bxb7 {[%emt 0:05:30]} Nxb7 {[%emt 0:00:30]} 17. Rad1 {[%emt 0:00:30]} Nc5 {[%emt 0:00:30]} 18. Qf4 {[%emt 0:06:30]} Qe7 {[%emt 0:04:30]} 19. Nd4 {[%emt 0:01:30]} Ne6 {[%emt 0:01:30]} 20. Nxe6 {[%emt 0:05:30]} Qxe6 {[%emt 0:00:30]} 21. Rd2 {[%emt 0:01:30]} Rfd8 {[%emt 0:00:30]} 22. Red1 {[%emt 0:00:30]} Rxd2 {[%emt 0:00:30]} 23. Rxd2 {[%emt 0:00:30]} Rc8 {[%emt 0:00:30]} 24. Qc7 {[%emt 0:02:30]} h6 {[%emt 0:00:30]} 25. Rd8+ {[%emt 0:01:30]} Rxd8 {[%emt 0:00:30]} 26. Qxd8+ {[%emt 0:00:30]} Kh7 {[%emt 0:00:30]} 27. Qd3 {[%emt 0:04:30]} Qxa2 {[%emt 0:01:30]} 28. h4 {[%emt 0:00:30]} Qa1+ {[%emt 0:02:30]} 29. Kh2 {[%emt 0:00:30]} Qe5+ {[%emt 0:00:30]} 30. g3 {[%emt 0:00:30]} h5 {[%emt 0:10:30]} 31. Qd7 {[%emt 0:01:30]} Qf6 {[%emt 0:02:30]} 32. f4 {[%emt 0:04:30]} a5 {[%emt 0:01:30]} 33. Qb5 {[%emt 0:06:30]} g6 {[%emt 0:04:30]} 34. e5 {[%emt 0:09:30]} Qe6 {[%emt 0:00:30]} 35. Kg2 {[%emt 0:00:30]} Qa2+ {[%emt 0:01:30]} 36. Kh3 {[%emt 0:00:30]} a4 {[%emt 0:03:30]} 37. f5 {[%emt 0:02:30]} gxf5 {[%emt 0:00:30]} 38. e6 {[%emt 0:01:30]} Qxe6 {[%emt 0:01:30]} 39. Qxa4 {[%emt 0:00:30]} f4+ {[%emt 0:00:30]} 0-1

[Event "26th Zadar Open 2019"]
[Site "Zadar"]
[Date "2019.12.21"]
[Round "8.17"]
[White "Rezan, Sasa"]
[Black "Zelic, Mladen"]
[Result "1-0"]
[ECO "D87"]
[WhiteElo "2415"]
[BlackElo "2254"]
[Annotator "NA"]
[PlyCount "61"]
[EventDate "2019.12.15"]
[EventType "swiss"]
[EventCountry "CRO"]
[SourceTitle "playchess.com"]
[Source "ChessBase"]
[SourceQuality "1"]
[TimeControl "40/5400+30:1800+30"]

1. d4 {[%emt 0:00:30]} Nf6 {[%emt 0:00:30]} 2. c4 {[%emt 0:00:00]} g6 {[%emt 0:00:00]} 3. Nc3 {[%emt 0:00:00]} d5 {[%emt 0:00:00]} 4. cxd5 {[%emt 0:00:30]} Nxd5 {[%emt 0:00:00]} 5. e4 {[%emt 0:00:00]} Nxc3 {[%emt 0:00:00]} 6. bxc3 {[%emt 0:00:00]} Bg7 {[%emt 0:00:30]} 7. Bc4 {[%emt 0:00:30]} c5 {[%emt 0:00:30]} 8. Ne2 {[%emt 0:00:30]} Nc6 {[%emt 0:01:30]} 9. Be3 {[%emt 0:00:30]} O-O {[%emt 0:01:30]} 10. O-O {[%emt 0:00:30]} Bd7 {[%emt 0:03:30]} 11. Rc1 $11 {[%emt 0:06:30]} Qc7 {[%emt 0:07:30]} 12. Qd2 {[%emt 0:06:30]} Rad8 {[%emt 0:22:30]} 13. Bh6 {[%emt 0:21:30]} Qa5 {[%emt 0:05:30]} 14. Bxg7 {[%emt 0:03:30]} Kxg7 {[%emt 0:00:30]} 15. Qe3 {[%emt 0:01:30]} b5 {[%emt 0:11:30]} 16. Bd5 {[%emt 0:03:30]} e6 {[%emt 0:05:30]} 17. Bxc6 {[%emt 0:01:30]} Bxc6 {[%emt 0:00:30]} 18. dxc5 {[%emt 0:03:30]} Qxa2 {[%emt 0:00:30]} 19. Nd4 {[%emt 0:00:30]} Qa6 {[%emt 0:07:30]} 20. Ra1 {[%emt 0:10:30]} Qb7 {[%emt 0:00:30]} 21. h4 {[%emt 0:03:30]} a6 {[%emt 0:04:30]} 22. h5 {[%emt 0:01:30]} gxh5 {[%emt 0:16:10]} 23. Qg5+ {[%emt 0:11:30]} Kh8 {[%emt 0:00:03]} 24. Qf6+ {[%emt 0:02:30]} Kg8 {[%emt 0:00:02]} 25. Rad1 {[%emt 0:00:30]} Bxe4 {[%emt 0:08:00]} 26. Nxe6 {[%emt 0:01:30]} fxe6 {[%emt 0:00:09]} 27. Rxd8 {[%emt 0:00:00]} Rxd8 {[%emt 0:00:08]} 28. Qxd8+ {[%emt 0:01:00]} Kf7 {[%emt 0:00:07]} 29. Rd1 {[%emt 0:01:04]} Bd5 {[%emt 0:00:32]} 30. Rd4 {[%emt 0:00:26]} Kg6 {[%emt 0:01:24]} 31. Rxd5 {[%emt 0:01:23]} 1-0